fUST/lending_fUST_20260525
["ID","MTS","AMOUNT","RATE_DAILY","PERIOD"]
[422968894,1779694239000,-500.0,9.253e-05,2]
[422968898,1779694239000,-500.0,9.253e-05,2]
[422968886,1779694239000,-752.85,9.041e-05,2]
[422968911,1779694239000,-500.0,9.253e-05,2]
[422968914,1779694239000,-500.0,9.253e-05,2]
[422968897,1779694239000,-500.0,9.253e-05,2]
[422968909,1779694239000,-500.0,9.253e-05,2]
[422968903,1779694239000,-500.0,9.253e-05,2]
[422968908,1779694239000,-500.0,9.253e-05,2]
[422968901,1779694239000,-500.0,9.253e-05,2]
[422968902,1779694239000,-519.14,9.253e-05,2]
[422968905,1779694239000,-500.0,9.253e-05,2]
[422968906,1779694239000,-500.0,9.253e-05,2]
[422968904,1779694239000,-500.0,9.253e-05,2]
[422968899,1779694239000,-500.0,9.253e-05,2]
[422968900,1779694239000,-500.0,9.253e-05,2]
[422968907,1779694239000,-500.0,9.253e-05,2]
[422968975,1779694240000,-500.0,9.314e-05,2]
[422968990,1779694240000,-500.0,9.527e-05,2]
[422968982,1779694240000,-962.4,9.315e-05,2]
[422968980,1779694240000,-500.0,9.315e-05,2]
[422968977,1779694240000,-500.0,9.315e-05,2]
[422968976,1779694240000,-500.0,9.314e-05,2]
[422968974,1779694240000,-556.14,9.314e-05,2]
[422968987,1779694240000,-500.0,9.315e-05,2]
[422968981,1779694240000,-500.0,9.315e-05,2]
[422968979,1779694240000,-153.37,9.315e-05,2]
[422968978,1779694240000,-500.0,9.315e-05,2]
[422968989,1779694240000,-214.28,9.527e-05,2]
[422968986,1779694240000,-500.0,9.315e-05,2]
[422968992,1779694240000,-500.0,9.527e-05,2]
[422969005,1779694240000,-500.0,9.527e-05,2]
[422968988,1779694240000,-587.0,9.379e-05,2]
[422968993,1779694240000,-500.0,9.527e-05,2]
[422968994,1779694240000,-500.0,9.527e-05,2]
[422968995,1779694240000,-307.75,9.527e-05,2]
[422968997,1779694240000,-500.0,9.527e-05,2]
[422968996,1779694240000,-500.0,9.527e-05,2]
[422968999,1779694240000,-500.0,9.527e-05,2]
[422968998,1779694240000,-500.0,9.527e-05,2]
[422969000,1779694240000,-255.62,9.527e-05,2]
[422969001,1779694240000,-188.64822852,9.527e-05,2]
[422969003,1779694240000,-500.0,9.527e-05,2]
[422969002,1779694240000,-500.0,9.527e-05,2]
[422968984,1779694240000,-3998.63,9.315e-05,2]
[422968991,1779694240000,-500.0,9.527e-05,2]
[422968985,1779694240000,-849.5,9.315e-05,2]
[422968947,1779694240000,-500.0,9.253e-05,2]
[422968972,1779694240000,-500.0,9.314e-05,2]
[422968946,1779694240000,-500.0,9.253e-05,2]
[422968943,1779694240000,-510.97593477,9.253e-05,2]
[422968948,1779694240000,-500.0,9.253e-05,2]
[422968945,1779694240000,-500.0,9.253e-05,2]
[422968944,1779694240000,-500.0,9.253e-05,2]
[422968955,1779694240000,-262.04625455,9.253e-05,2]
[422968956,1779694240000,-904.8417,9.253e-05,2]
[422968951,1779694240000,-500.0,9.253e-05,2]
[422969004,1779694240000,-373.45,9.527e-05,2]
[422968950,1779694240000,-500.0,9.253e-05,2]
[422968957,1779694240000,-430.04837568,9.253e-05,2]
[422968949,1779694240000,-500.0,9.253e-05,2]
[422968952,1779694240000,-500.0,9.253e-05,2]
[422968960,1779694240000,-500.0,9.253e-05,2]
[422968954,1779694240000,-500.0,9.253e-05,2]
[422968953,1779694240000,-500.0,9.253e-05,2]
[422968959,1779694240000,-500.0,9.253e-05,2]
[422968962,1779694240000,-183.48793948,9.253e-05,2]
[422968961,1779694240000,-500.0,9.253e-05,2]
[422968969,1779694240000,-500.0,9.314e-05,2]
[422968973,1779694240000,-500.0,9.314e-05,2]
[422968965,1779694240000,-500.0,9.314e-05,2]
[422968963,1779694240000,-556.80479586,9.253e-05,2]
[422968964,1779694240000,-500.0,9.314e-05,2]
[422968971,1779694240000,-500.0,9.314e-05,2]
[422968967,1779694240000,-500.0,9.314e-05,2]
[422968970,1779694240000,-500.0,9.314e-05,2]
[422968968,1779694240000,-500.0,9.314e-05,2]
[422968966,1779694240000,-578.29,9.314e-05,2]
[422968983,1779694240000,-752.85,9.315e-05,2]
[422969006,1779694240000,-500.0,9.527e-05,2]
[422968958,1779694240000,-500.0,9.253e-05,2]
[422969010,1779694240000,-500.0,9.527e-05,2]
[422969052,1779694240000,-588.79,9.801e-05,2]
[422969041,1779694240000,-500.0,9.588e-05,2]
[422969043,1779694240000,-500.0,9.589e-05,2]
[422969042,1779694240000,-500.0,9.589e-05,2]
[422969045,1779694240000,-500.0,9.589e-05,2]
[422969049,1779694240000,-849.5,9.589e-05,2]
[422969046,1779694240000,-962.4,9.589e-05,2]
[422969047,1779694240000,-752.85,9.589e-05,2]
[422969048,1779694240000,-3998.63,9.589e-05,2]
[422969044,1779694240000,-500.0,9.589e-05,2]
[422969056,1779694240000,-500.0,9.801e-05,2]
[422969053,1779694240000,-500.0,9.801e-05,2]
[422969055,1779694240000,-500.0,9.801e-05,2]
[422969060,1779694240000,-500.0,9.801e-05,2]
[422969064,1779694240000,-500.0,9.801e-05,2]
[422969057,1779694240000,-500.0,9.801e-05,2]
[422969054,1779694240000,-500.0,9.801e-05,2]
[422969061,1779694240000,-497.08,9.801e-05,2]
[422969059,1779694240000,-500.0,9.801e-05,2]
[422969062,1779694240000,-500.0,9.801e-05,2]
[422969065,1779694240000,-500.0,9.801e-05,2]
[422969058,1779694240000,-460.42,9.801e-05,2]
[422969063,1779694240000,-344.16,9.801e-05,2]
[422969067,1779694240000,-500.0,9.801e-05,2]
[422969066,1779694240000,-500.0,9.801e-05,2]
[422969070,1779694240000,-500.0,9.801e-05,2]
[422969069,1779694240000,-500.0,9.801e-05,2]
[422969068,1779694240000,-668.0,9.801e-05,2]
[422969007,1779694240000,-561.1,9.527e-05,2]
[422969039,1779694240000,-500.0,9.588e-05,2]
[422969051,1779694240000,-500.0,9.589e-05,2]
[422969071,1779694240000,-500.0,9.801e-05,2]
[422969040,1779694240000,-500.0,9.588e-05,2]
[422969008,1779694240000,-354.8180437,9.527e-05,2]
[422969009,1779694240000,-500.0,9.527e-05,2]
[422969011,1779694240000,-415.24482508,9.527e-05,2]
[422969013,1779694240000,-552.27,9.527e-05,2]
[422969022,1779694240000,-500.0,9.527e-05,2]
[422969024,1779694240000,-209.41035826,9.527e-05,2]
[422969023,1779694240000,-501.9553228,9.527e-05,2]
[422969025,1779694240000,-500.0,9.527e-05,2]
[422969014,1779694240000,-668.0,9.527e-05,2]
[422969016,1779694240000,-501.64430849,9.527e-05,2]
[422969018,1779694240000,-500.0,9.527e-05,2]
[422969021,1779694240000,-501.01625253,9.527e-05,2]
[422969020,1779694240000,-535.34,9.527e-05,2]
[422969017,1779694240000,-500.0,9.527e-05,2]
[422969012,1779694240000,-500.0,9.527e-05,2]
[422969019,1779694240000,-501.56354077,9.527e-05,2]
[422969038,1779694240000,-500.0,9.588e-05,2]
[422969015,1779694240000,-500.0,9.527e-05,2]
[422969037,1779694240000,-500.0,9.588e-05,2]
[422969035,1779694240000,-623.17,9.588e-05,2]
[422969036,1779694240000,-500.0,9.588e-05,2]
[422969034,1779694240000,-500.0,9.588e-05,2]
[422969030,1779694240000,-500.0,9.527e-05,2]
[422969050,1779694240000,-500.0,9.589e-05,2]
[422969029,1779694240000,-500.0,9.527e-05,2]
[422969033,1779694240000,-578.29,9.588e-05,2]
[422969032,1779694240000,-500.0,9.588e-05,2]
[422969031,1779694240000,-500.0,9.588e-05,2]
[422969028,1779694240000,-533.49,9.527e-05,2]
[422969026,1779694240000,-500.0,9.527e-05,2]
[422969027,1779694240000,-904.8417,9.527e-05,2]
[422969116,1779694241000,-221.51145705,0.00010135,2]
[422969114,1779694241000,-904.8417,0.00010075,2]
[422969109,1779694241000,-668.0,0.00010075,2]
[422969110,1779694241000,-267.4,0.00010075,2]
[422969113,1779694241000,-500.0,0.00010075,2]
[422969111,1779694241000,-500.0,0.00010075,2]
[422969108,1779694241000,-500.0,0.00010075,2]
[422969107,1779694241000,-500.0,0.00010075,2]
[422969100,1779694241000,-590.3,0.00010075,2]
[422969097,1779694241000,-500.0,0.00010075,2]
[422969126,1779694241000,-500.0,0.00010135,2]
[422969112,1779694241000,-500.0,0.00010075,2]
[422969098,1779694241000,-500.0,0.00010075,2]
[422969139,1779694241000,-1155.0,0.00010135,2]
[422969121,1779694241000,-500.0,0.00010135,2]
[422969117,1779694241000,-155.78448028,0.00010135,2]
[422969125,1779694241000,-602.80359109,0.00010135,2]
[422969120,1779694241000,-500.0,0.00010135,2]
[422969122,1779694241000,-500.0,0.00010135,2]
[422969124,1779694241000,-500.0,0.00010135,2]
[422969115,1779694241000,-500.0,0.00010075,2]
[422969119,1779694241000,-500.0,0.00010135,2]
[422969123,1779694241000,-500.0,0.00010135,2]
[422969128,1779694241000,-500.0,0.00010135,2]
[422969138,1779694241000,-1155.0,0.00010135,2]
[422969127,1779694241000,-1155.0,0.00010135,2]
[422969140,1779694241000,-1155.0,0.00010135,2]
[422969103,1779694241000,-151.0,0.00010075,2]
[422969118,1779694241000,-500.0,0.00010135,2]
[422969101,1779694241000,-500.0,0.00010075,2]
[422969083,1779694241000,-500.0,9.862e-05,2]
[422969099,1779694241000,-342.98,0.00010075,2]
[422969130,1779694241000,-320.0582925,0.00010135,2]
[422969073,1779694241000,-904.8417,9.801e-05,2]
[422969074,1779694241000,-500.0,9.801e-05,2]
[422969075,1779694241000,-500.0,9.862e-05,2]
[422969076,1779694241000,-500.0,9.862e-05,2]
[422969072,1779694241000,-500.0,9.801e-05,2]
[422969077,1779694241000,-578.29,9.862e-05,2]
[422969078,1779694241000,-500.0,9.862e-05,2]
[422969092,1779694241000,-849.5,9.863e-05,2]
[422969090,1779694241000,-752.85,9.863e-05,2]
[422969080,1779694241000,-500.0,9.862e-05,2]
[422969091,1779694241000,-3998.63,9.863e-05,2]
[422969081,1779694241000,-500.0,9.862e-05,2]
[422969102,1779694241000,-221.37,0.00010075,2]
[422969079,1779694241000,-315.43,9.862e-05,2]
[422969084,1779694241000,-500.0,9.862e-05,2]
[422969085,1779694241000,-500.0,9.863e-05,2]
[422969089,1779694241000,-962.4,9.863e-05,2]
[422969088,1779694241000,-500.0,9.863e-05,2]
[422969086,1779694241000,-500.0,9.863e-05,2]
[422969087,1779694241000,-500.0,9.863e-05,2]
[422969094,1779694241000,-500.0,9.863e-05,2]
[422969104,1779694241000,-500.0,0.00010075,2]
[422969105,1779694241000,-500.0,0.00010075,2]
[422969106,1779694241000,-500.0,0.00010075,2]
[422969093,1779694241000,-500.0,9.863e-05,2]
[422969095,1779694241000,-177.0,9.91e-05,2]
[422969096,1779694241000,-412.07,0.00010075,2]
[422969082,1779694241000,-500.0,9.862e-05,2]
[422969135,1779694241000,-1155.0,0.00010135,2]
[422969129,1779694241000,-1155.0,0.00010135,2]
[422969181,1779694241000,-648.93,0.00010349,2]
[422969171,1779694241000,-823.0,0.00010317,2]
[422969175,1779694241000,-500.0,0.00010349,2]
[422969169,1779694241000,-245.71474992,0.000103,2]
[422969167,1779694241000,-161.74769687,0.00010262,2]
[422969172,1779694241000,-500.0,0.00010349,2]
[422969179,1779694241000,-500.0,0.00010349,2]
[422969170,1779694241000,-246.86909976,0.000103,2]
[422969174,1779694241000,-500.0,0.00010349,2]
[422969177,1779694241000,-500.0,0.00010349,2]
[422969173,1779694241000,-500.0,0.00010349,2]
[422969176,1779694241000,-500.0,0.00010349,2]
[422969187,1779694241000,-245.71474992,0.000104,2]
[422969180,1779694241000,-668.0,0.00010349,2]
[422969189,1779694241000,-151.0,0.00010407,2]
[422969188,1779694241000,-246.86909976,0.000104,2]
[422969191,1779694241000,-500.0,0.0001041,2]
[422969190,1779694241000,-500.0,0.0001041,2]
[422969193,1779694241000,-500.0,0.0001041,2]
[422969182,1779694241000,-500.0,0.00010349,2]
[422969192,1779694241000,-500.0,0.0001041,2]
[422969183,1779694241000,-500.0,0.00010349,2]
[422969185,1779694241000,-500.0,0.00010349,2]
[422969186,1779694241000,-160.0,0.00010363,2]
[422969184,1779694241000,-904.8417,0.00010349,2]
[422969194,1779694241000,-962.4,0.0001041,2]
[422969196,1779694241000,-752.85,0.0001041,2]
[422969134,1779694241000,-1155.0,0.00010135,2]
[422969168,1779694241000,-160.0,0.000103,2]
[422969158,1779694241000,-500.0,0.00010136,2]
[422969178,1779694241000,-500.0,0.00010349,2]
[422969155,1779694241000,-3998.63,0.00010136,2]
[422969136,1779694241000,-1155.0,0.00010135,2]
[422969132,1779694241000,-1155.0,0.00010135,2]
[422969133,1779694241000,-1155.0,0.00010135,2]
[422969137,1779694241000,-1155.0,0.00010135,2]
[422969131,1779694241000,-1155.0,0.00010135,2]
[422969142,1779694241000,-1155.0,0.00010135,2]
[422969143,1779694241000,-1155.0,0.00010135,2]
[422969145,1779694241000,-1155.0,0.00010135,2]
[422969144,1779694241000,-1155.0,0.00010135,2]
[422969157,1779694241000,-500.0,0.00010136,2]
[422969146,1779694241000,-500.0,0.00010136,2]
[422969150,1779694241000,-962.4,0.00010136,2]
[422969147,1779694241000,-500.0,0.00010136,2]
[422969148,1779694241000,-500.0,0.00010136,2]
[422969151,1779694241000,-500.0,0.00010136,2]
[422969141,1779694241000,-1155.0,0.00010135,2]
[422969154,1779694241000,-578.29,0.00010136,2]
[422969152,1779694241000,-752.85,0.00010136,2]
[422969156,1779694241000,-849.5,0.00010136,2]
[422969165,1779694241000,-183.48793947,0.00010178,2]
[422969164,1779694241000,-500.0,0.00010136,2]
[422969166,1779694241000,-160.0,0.00010262,2]
[422969163,1779694241000,-500.0,0.00010136,2]
[422969195,1779694241000,-500.0,0.0001041,2]
[422969162,1779694241000,-500.0,0.00010136,2]
[422969161,1779694241000,-500.0,0.00010136,2]
[422969159,1779694241000,-500.0,0.00010136,2]
[422969153,1779694241000,-249.75,0.00010136,2]
[422969149,1779694241000,-500.0,0.00010136,2]
[422969160,1779694241000,-360.12,0.00010136,2]
[422969242,1779694242000,-500.0,0.00010662,2]
[422969234,1779694242000,-500.0,0.00010662,2]
[422969239,1779694242000,-500.0,0.00010662,2]
[422969236,1779694242000,-500.0,0.00010662,2]
[422969237,1779694242000,-500.0,0.00010662,2]
[422969245,1779694242000,-500.0,0.00010662,2]
[422969238,1779694242000,-500.0,0.00010662,2]
[422969243,1779694242000,-500.0,0.00010662,2]
[422969235,1779694242000,-500.0,0.00010662,2]
[422969231,1779694242000,-500.0,0.00010662,2]
[422969232,1779694242000,-500.0,0.00010662,2]
[422969244,1779694242000,-500.0,0.00010662,2]
[422969225,1779694242000,-1071.0,0.0001066,2]
[422969257,1779694242000,-500.0,0.00010662,2]
[422969241,1779694242000,-500.0,0.00010662,2]
[422969247,1779694242000,-500.0,0.00010662,2]
[422969246,1779694242000,-500.0,0.00010662,2]
[422969248,1779694242000,-500.0,0.00010662,2]
[422969259,1779694242000,-500.0,0.00010662,2]
[422969253,1779694242000,-500.0,0.00010662,2]
[422969249,1779694242000,-500.0,0.00010662,2]
[422969255,1779694242000,-500.0,0.00010662,2]
[422969251,1779694242000,-500.0,0.00010662,2]
[422969250,1779694242000,-500.0,0.00010662,2]
[422969252,1779694242000,-500.0,0.00010662,2]
[422969254,1779694242000,-500.0,0.00010662,2]
[422969256,1779694242000,-500.0,0.00010662,2]
[422969233,1779694242000,-500.0,0.00010662,2]
[422969240,1779694242000,-500.0,0.00010662,2]
[422969226,1779694242000,-500.0,0.00010662,2]
[422969200,1779694242000,-500.0,0.0001041,2]
[422969224,1779694242000,-2133.2028123,0.00010635,2]
[422969201,1779694242000,-500.0,0.0001041,2]
[422969203,1779694242000,-211.20827904,0.0001041,2]
[422969205,1779694242000,-500.0,0.0001041,2]
[422969206,1779694242000,-500.0,0.0001041,2]
[422969199,1779694242000,-849.5,0.0001041,2]
[422969202,1779694242000,-500.0,0.0001041,2]
[422969198,1779694242000,-3998.63,0.0001041,2]
[422969204,1779694242000,-500.0,0.0001041,2]
[422969197,1779694242000,-578.29,0.0001041,2]
[422969218,1779694242000,-500.0,0.00010623,2]
[422969208,1779694242000,-246.86909976,0.000105,2]
[422969220,1779694242000,-500.0,0.00010623,2]
[422969219,1779694242000,-668.0,0.00010623,2]
[422969223,1779694242000,-500.0,0.00010623,2]
[422969207,1779694242000,-245.71474992,0.000105,2]
[422969209,1779694242000,-245.71474992,0.000106,2]
[422969212,1779694242000,-500.0,0.00010623,2]
[422969214,1779694242000,-500.0,0.00010623,2]
[422969217,1779694242000,-500.0,0.00010623,2]
[422969215,1779694242000,-279.08,0.00010623,2]
[422969213,1779694242000,-525.72,0.00010623,2]
[422969216,1779694242000,-500.0,0.00010623,2]
[422969221,1779694242000,-500.0,0.00010623,2]
[422969227,1779694242000,-500.0,0.00010662,2]
[422969228,1779694242000,-500.0,0.00010662,2]
[422969230,1779694242000,-500.0,0.00010662,2]
[422969222,1779694242000,-904.8417,0.00010623,2]
[422969229,1779694242000,-500.0,0.00010662,2]
[422969210,1779694242000,-246.86909976,0.000106,2]
[422969258,1779694242000,-500.0,0.00010662,2]
[422969211,1779694242000,-500.0,0.00010623,2]
[422969261,1779694242000,-500.0,0.00010662,2]
[422969295,1779694242000,-501.66,0.00010662,2]
[422969297,1779694242000,-555.05,0.00010662,2]
[422969303,1779694242000,-500.0,0.00010662,2]
[422969302,1779694242000,-500.0,0.00010662,2]
[422969293,1779694242000,-500.0,0.00010662,2]
[422969298,1779694242000,-500.0,0.00010662,2]
[422969299,1779694242000,-500.0,0.00010662,2]
[422969300,1779694242000,-500.0,0.00010662,2]
[422969301,1779694242000,-500.0,0.00010662,2]
[422969305,1779694242000,-575.13,0.00010662,2]
[422969304,1779694242000,-500.0,0.00010662,2]
[422969306,1779694242000,-500.0,0.00010662,2]
[422969307,1779694242000,-500.0,0.00010662,2]
[422969294,1779694242000,-500.0,0.00010662,2]
[422969314,1779694242000,-500.0,0.00010662,2]
[422969311,1779694242000,-151.0,0.00010662,2]
[422969316,1779694242000,-500.0,0.00010662,2]
[422969313,1779694242000,-500.0,0.00010662,2]
[422969320,1779694242000,-500.0,0.00010662,2]
[422969309,1779694242000,-500.0,0.00010662,2]
[422969318,1779694242000,-500.0,0.00010662,2]
[422969319,1779694242000,-640.28114326,0.00010662,2]
[422969317,1779694242000,-500.0,0.00010662,2]
[422969321,1779694242000,-500.0,0.00010662,2]
[422969322,1779694242000,-500.0,0.00010662,2]
[422969324,1779694242000,-500.0,0.00010662,2]
[422969326,1779694242000,-500.0,0.00010662,2]
[422969260,1779694242000,-500.0,0.00010662,2]
[422969315,1779694242000,-500.0,0.00010662,2]
[422969296,1779694242000,-500.0,0.00010662,2]
[422969323,1779694242000,-500.0,0.00010662,2]
[422969290,1779694242000,-500.0,0.00010662,2]
[422969292,1779694242000,-500.0,0.00010662,2]
[422969267,1779694242000,-500.0,0.00010662,2]
[422969268,1779694242000,-236.15786682,0.00010662,2]
[422969263,1779694242000,-500.0,0.00010662,2]
[422969266,1779694242000,-500.0,0.00010662,2]
[422969264,1779694242000,-500.0,0.00010662,2]
[422969269,1779694242000,-500.0,0.00010662,2]
[422969265,1779694242000,-500.0,0.00010662,2]
[422969275,1779694242000,-151.0,0.00010662,2]
[422969270,1779694242000,-500.0,0.00010662,2]
[422969277,1779694242000,-151.0,0.00010662,2]
[422969276,1779694242000,-151.0,0.00010662,2]
[422969278,1779694242000,-543.8,0.00010662,2]
[422969279,1779694242000,-544.68,0.00010662,2]
[422969262,1779694242000,-500.0,0.00010662,2]
[422969272,1779694242000,-500.0,0.00010662,2]
[422969280,1779694242000,-500.0,0.00010662,2]
[422969291,1779694242000,-500.0,0.00010662,2]
[422969283,1779694242000,-500.0,0.00010662,2]
[422969286,1779694242000,-500.0,0.00010662,2]
[422969289,1779694242000,-500.0,0.00010662,2]
[422969282,1779694242000,-151.0,0.00010662,2]
[422969287,1779694242000,-500.0,0.00010662,2]
[422969285,1779694242000,-500.0,0.00010662,2]
[422969271,1779694242000,-500.0,0.00010662,2]
[422969284,1779694242000,-500.0,0.00010662,2]
[422969273,1779694242000,-500.0,0.00010662,2]
[422969274,1779694242000,-501.60488927,0.00010662,2]
[422969281,1779694242000,-500.0,0.00010662,2]
[422969288,1779694242000,-574.43,0.00010662,2]
[422969362,1779694243000,-500.0,0.00010662,2]
[422969372,1779694243000,-151.0,0.00010663,2]
[422969363,1779694243000,-539.25,0.00010662,2]
[422969366,1779694243000,-500.0,0.00010662,2]
[422969367,1779694243000,-439.50056679,0.00010662,2]
[422969365,1779694243000,-500.0,0.00010662,2]
[422969368,1779694243000,-50290.7094693,0.00010663,2]
[422969374,1779694243000,-151.0,0.00010663,2]
[422969371,1779694243000,-151.0,0.00010663,2]
[422969364,1779694243000,-504.3605417,0.00010662,2]
[422969370,1779694243000,-7786.7960236,0.00010663,2]
[422969353,1779694243000,-500.0,0.00010662,2]
[422969379,1779694243000,-500.0,0.0001068,2]
[422969373,1779694243000,-151.0,0.00010663,2]
[422969376,1779694243000,-500.0,0.0001068,2]
[422969377,1779694243000,-500.0,0.0001068,2]
[422969378,1779694243000,-500.0,0.0001068,2]
[422969375,1779694243000,-196.809662,0.00010663,2]
[422969381,1779694243000,-500.0,0.00010681,2]
[422969380,1779694243000,-500.0,0.00010681,2]
[422969383,1779694243000,-500.0,0.00010681,2]
[422969382,1779694243000,-500.0,0.00010681,2]
[422969384,1779694243000,-151.0,0.00010682,2]
[422969352,1779694243000,-500.0,0.00010662,2]
[422969387,1779694243000,-151.0,0.00010682,2]
[422969369,1779694243000,-198.0135968,0.00010663,2]
[422969358,1779694243000,-500.0,0.00010662,2]
[422969347,1779694243000,-500.0,0.00010662,2]
[422969359,1779694243000,-500.0,0.00010662,2]
[422969385,1779694243000,-151.0,0.00010682,2]
[422969337,1779694243000,-500.0,0.00010662,2]
[422969327,1779694243000,-500.0,0.00010662,2]
[422969335,1779694243000,-500.0,0.00010662,2]
[422969329,1779694243000,-500.0,0.00010662,2]
[422969340,1779694243000,-500.0,0.00010662,2]
[422969341,1779694243000,-500.0,0.00010662,2]
[422969342,1779694243000,-500.0,0.00010662,2]
[422969339,1779694243000,-500.0,0.00010662,2]
[422969338,1779694243000,-500.0,0.00010662,2]
[422969331,1779694243000,-500.0,0.00010662,2]
[422969333,1779694243000,-500.0,0.00010662,2]
[422969349,1779694243000,-500.0,0.00010662,2]
[422969344,1779694243000,-500.0,0.00010662,2]
[422969343,1779694243000,-500.0,0.00010662,2]
[422969348,1779694243000,-500.0,0.00010662,2]
[422969346,1779694243000,-500.0,0.00010662,2]
[422969345,1779694243000,-500.0,0.00010662,2]
[422969350,1779694243000,-500.0,0.00010662,2]
[422969355,1779694243000,-500.0,0.00010662,2]
[422969356,1779694243000,-500.0,0.00010662,2]
[422969357,1779694243000,-500.0,0.00010662,2]
[422969360,1779694243000,-500.0,0.00010662,2]
[422969361,1779694243000,-500.0,0.00010662,2]
[422969351,1779694243000,-500.0,0.00010662,2]
[422969354,1779694243000,-500.0,0.00010662,2]
[422969386,1779694243000,-296.740689,0.00010682,2]
[422969336,1779694243000,-500.0,0.00010662,2]
[422969390,1779694243000,-500.0,0.00010683,2]
[422969419,1779694243000,-752.85,0.00010684,2]
[422969421,1779694243000,-3998.63,0.00010684,2]
[422969422,1779694243000,-849.5,0.00010684,2]
[422969424,1779694243000,-471.97819774,0.00010684,2]
[422969423,1779694243000,-500.0,0.00010684,2]
[422969426,1779694243000,-500.0,0.00010684,2]
[422969425,1779694243000,-500.0,0.00010684,2]
[422969427,1779694243000,-500.0,0.00010684,2]
[422969434,1779694243000,-152.0,0.00010714,2]
[422969433,1779694243000,-152.0,0.00010714,2]
[422969429,1779694243000,-245.71474992,0.000107,2]
[422969431,1779694243000,-152.0,0.00010704,2]
[422969420,1779694243000,-578.29,0.00010684,2]
[422969430,1779694243000,-246.86909976,0.000107,2]
[422969428,1779694243000,-500.0,0.00010684,2]
[422969435,1779694243000,-152.0,0.00010714,2]
[422969437,1779694243000,-152.0,0.00010714,2]
[422969436,1779694243000,-152.0,0.00010714,2]
[422969438,1779694243000,-152.0,0.00010724,2]
[422969439,1779694243000,-152.0,0.00010724,2]
[422969440,1779694243000,-152.0,0.00010724,2]
[422969445,1779694243000,-500.0,0.00010897,2]
[422969443,1779694243000,-152.0,0.00010724,2]
[422969444,1779694243000,-11517.39614367,0.00010789,2]
[422969442,1779694243000,-152.0,0.00010724,2]
[422969388,1779694243000,-500.97193915,0.00010683,2]
[422969432,1779694243000,-152.0,0.00010704,2]
[422969418,1779694243000,-500.0,0.00010684,2]
[422969441,1779694243000,-152.0,0.00010724,2]
[422969417,1779694243000,-962.4,0.00010684,2]
[422969416,1779694243000,-262.52,0.00010684,2]
[422969394,1779694243000,-500.0,0.00010683,2]
[422969389,1779694243000,-500.0,0.00010683,2]
[422969395,1779694243000,-710.95037924,0.00010683,2]
[422969391,1779694243000,-500.0,0.00010683,2]
[422969392,1779694243000,-279.39279402,0.00010683,2]
[422969398,1779694243000,-3554.75189619,0.00010683,2]
[422969396,1779694243000,-1279.71068263,0.00010683,2]
[422969400,1779694243000,-151.0,0.00010683,2]
[422969397,1779694243000,-2275.04121356,0.00010683,2]
[422969399,1779694243000,-5118.84273052,0.00010683,2]
[422969402,1779694243000,-248.661311,0.00010683,2]
[422969401,1779694243000,-151.0,0.00010683,2]
[422969393,1779694243000,-500.0,0.00010683,2]
[422969405,1779694243000,-2534.93299562,0.00010683,2]